[Event "GrandPrix_29.05"]
[Site "Chess.com"]
[Date "2020.05.29"]
[Round "2"]
[White "Saxar85"]
[Black "tsaruk_maks"]
[Result "1-0"]
[WhiteElo "2673"]
[BlackElo "2202"]
[TimeControl "600+2"]
[EndTime "9:51:50 PDT"]
[Termination "Saxar85 won by resignation"]

1. Nf3 {[%clk 0:09:59.1]} 1... Nf6 {[%clk 0:09:59]} 2. g3 {[%clk 0:09:58.6]}
2... d5 {[%clk 0:09:58.8]} 3. Bg2 {[%clk 0:09:58.6]} 3... e6 {[%clk 0:09:59.1]}
4. O-O {[%clk 0:09:56.1]} 4... c5 {[%clk 0:09:59.4]} 5. c4 {[%clk 0:09:54.8]}
5... Nc6 {[%clk 0:08:58.9]} 6. cxd5 {[%clk 0:09:53]} 6... exd5 {[%clk
0:08:59.4]} 7. d4 {[%clk 0:09:52.9]} 7... h6 {[%clk 0:08:34.6]} 8. Nc3 {[%clk
0:09:50.3]} 8... Be6 {[%clk 0:08:33.8]} 9. b3 {[%clk 0:09:25.3]} 9... b6 {[%clk
0:07:24.8]} 10. Ba3 {[%clk 0:08:50.4]} 10... Ne4 {[%clk 0:06:23.4]} 11. Bb2
{[%clk 0:07:51.1]} 11... f5 {[%clk 0:05:41.3]} 12. dxc5 {[%clk 0:06:53.2]} 12...
bxc5 {[%clk 0:05:33.7]} 13. Nh4 {[%clk 0:06:42.3]} 13... Kf7 {[%clk 0:04:17.8]}
14. e3 {[%clk 0:06:29.7]} 14... Nf6 {[%clk 0:04:12.4]} 15. Rc1 {[%clk
0:06:03.3]} 15... g5 {[%clk 0:02:52.4]} 16. Nxd5 {[%clk 0:04:19.5]} 16... Bxd5
{[%clk 0:02:51.7]} 17. Bxf6 {[%clk 0:04:18.6]} 17... Kxf6 {[%clk 0:02:53.6]} 18.
Bxd5 {[%clk 0:04:06.3]} 18... gxh4 {[%clk 0:02:42.6]} 19. Bxc6 {[%clk
0:04:04.8]} 19... Qxd1 {[%clk 0:02:37]} 20. Rfxd1 {[%clk 0:04:03.1]} 20... Rc8
{[%clk 0:02:38.3]} 21. Bd7 {[%clk 0:03:47]} 21... Rd8 {[%clk 0:02:22.2]} 22. Rd5
{[%clk 0:03:46.6]} 22... hxg3 {[%clk 0:02:08.1]} 23. hxg3 {[%clk 0:03:44.3]}
23... Rh7 {[%clk 0:02:02.7]} 24. Rcd1 {[%clk 0:03:41.2]} 24... Re7 {[%clk
0:01:55.7]} 25. Bxf5 {[%clk 0:03:22.2]} 25... Rxd5 {[%clk 0:01:48.2]} 26. Rxd5
{[%clk 0:03:22.5]} 26... Re5 {[%clk 0:01:50.1]} 27. Rxe5 {[%clk 0:03:22]} 27...
Kxe5 {[%clk 0:01:52]} 28. Bd3 {[%clk 0:03:21.4]} 28... Bg7 {[%clk 0:01:43.4]}
29. f4+ {[%clk 0:03:19.6]} 29... Kd6 {[%clk 0:01:44.3]} 30. g4 {[%clk
0:03:18.1]} 30... Bc3 {[%clk 0:01:42.9]} 31. Kf2 {[%clk 0:03:16.4]} 31... Bf6
{[%clk 0:01:38]} 32. Bc4 {[%clk 0:03:15.6]} 1-0

[Event "GrandPrix_29.05"]
[Site "Chess.com"]
[Date "2020.05.29"]
[Round "2"]
[White "Dyadya81"]
[Black "Y0ung_Capablanca"]
[Result "1-0"]
[WhiteElo "2527"]
[BlackElo "2339"]
[TimeControl "600+2"]
[EndTime "9:51:51 PDT"]
[Termination "Dyadya81 won by resignation"]

1. e4 {[%clk 0:10:01.9]} 1... c6 {[%clk 0:09:53.8]} 2. d4 {[%clk 0:10:01.1]}
2... d5 {[%clk 0:09:49.1]} 3. e5 {[%clk 0:10:01.6]} 3... c5 {[%clk 0:09:49.9]}
4. dxc5 {[%clk 0:10:00.4]} 4... e6 {[%clk 0:09:51.2]} 5. Bd3 {[%clk 0:09:57.3]}
5... Nd7 {[%clk 0:09:49.1]} 6. Bf4 {[%clk 0:09:39.4]} 6... Nxc5 {[%clk
0:09:31.5]} 7. Nf3 {[%clk 0:09:39]} 7... Ne7 {[%clk 0:09:27.5]} 8. O-O {[%clk
0:09:33.9]} 8... Ng6 {[%clk 0:09:15]} 9. Bg3 {[%clk 0:09:19.1]} 9... Be7 {[%clk
0:09:08.9]} 10. Nc3 {[%clk 0:09:09.1]} 10... Bd7 {[%clk 0:08:44.4]} 11. Re1
{[%clk 0:08:57.2]} 11... O-O {[%clk 0:08:23.5]} 12. Bf1 {[%clk 0:08:45.3]} 12...
Qb6 {[%clk 0:08:21.9]} 13. Rb1 {[%clk 0:08:41.8]} 13... Rac8 {[%clk 0:08:17.1]}
14. h4 {[%clk 0:08:36.9]} 14... Rfd8 {[%clk 0:08:09.8]} 15. h5 {[%clk
0:08:34.5]} 15... Nf8 {[%clk 0:08:09.5]} 16. h6 {[%clk 0:08:30.6]} 16... Ng6
{[%clk 0:05:39.5]} 17. Qc1 {[%clk 0:08:05.4]} 17... Bc6 {[%clk 0:04:48.6]} 18.
Nd4 {[%clk 0:07:52.7]} 18... Ne4 {[%clk 0:03:20.7]} 19. Nxc6 {[%clk 0:07:39.1]}
19... Bg5 {[%clk 0:03:15.5]} 20. Qd1 {[%clk 0:07:25.8]} 20... Qxc6 {[%clk
0:02:14.3]} 21. Nxe4 {[%clk 0:07:19.7]} 21... dxe4 {[%clk 0:02:14.4]} 22. Qg4
{[%clk 0:07:09.4]} 22... Bxh6 {[%clk 0:02:15.6]} 23. c3 {[%clk 0:07:09.8]} 23...
e3 {[%clk 0:01:50.4]} 24. fxe3 {[%clk 0:07:08.4]} 24... Qc5 {[%clk 0:01:09.9]}
25. Qe4 {[%clk 0:07:04.4]} 25... Rd5 {[%clk 0:01:05.4]} 26. c4 {[%clk 0:06:58]}
26... Rd7 {[%clk 0:01:05.7]} 27. b4 {[%clk 0:06:52]} 27... Qc7 {[%clk
0:01:01.4]} 28. Rbd1 {[%clk 0:06:44.4]} 28... Rcd8 {[%clk 0:01:00.5]} 29. Rd6
{[%clk 0:06:41]} 29... Bg5 {[%clk 0:00:48.9]} 30. c5 {[%clk 0:06:39.8]} 30...
Be7 {[%clk 0:00:50.3]} 31. Bb5 {[%clk 0:06:37.8]} 31... Bxd6 {[%clk 0:00:40.2]}
32. exd6 {[%clk 0:06:36.2]} 32... Qc8 {[%clk 0:00:37.5]} 33. Rd1 {[%clk
0:06:12.3]} 33... a6 {[%clk 0:00:23.4]} 34. Ba4 {[%clk 0:06:05.7]} 34... e5
{[%clk 0:00:24.7]} 35. a3 {[%clk 0:05:28.2]} 35... Re8 {[%clk 0:00:08.4]} 36.
Rc1 {[%clk 0:05:09.3]} 36... b5 {[%clk 0:00:07.1]} 37. Bc2 {[%clk 0:04:57.9]}
37... Rxd6 {[%clk 0:00:08.6]} 38. cxd6 {[%clk 0:04:58.7]} 1-0

[Event "GrandPrix_29.05"]
[Site "Chess.com"]
[Date "2020.05.29"]
[Round "2"]
[White "Supernotar"]
[Black "KJakubowski"]
[Result "0-1"]
[WhiteElo "2140"]
[BlackElo "2472"]
[TimeControl "600+2"]
[EndTime "9:51:55 PDT"]
[Termination "KJakubowski won by checkmate"]

1. d4 {[%clk 0:10:01.9]} 1... Nf6 {[%clk 0:09:58.4]} 2. c4 {[%clk 0:10:00.9]}
2... e6 {[%clk 0:09:58.9]} 3. Nf3 {[%clk 0:10:01.3]} 3... d5 {[%clk 0:09:57.5]}
4. e3 {[%clk 0:10:02]} 4... Nbd7 {[%clk 0:09:52.2]} 5. Nbd2 {[%clk 0:09:58.7]}
5... b6 {[%clk 0:09:51.9]} 6. Bd3 {[%clk 0:09:58.8]} 6... Bb7 {[%clk 0:09:52.3]}
7. O-O {[%clk 0:09:58]} 7... Be7 {[%clk 0:09:50.2]} 8. b3 {[%clk 0:09:58.4]}
8... O-O {[%clk 0:09:50.3]} 9. Bb2 {[%clk 0:09:58.6]} 9... c5 {[%clk 0:09:50.9]}
10. Qe2 {[%clk 0:09:59.1]} 10... cxd4 {[%clk 0:09:39.1]} 11. Nxd4 {[%clk
0:09:58.2]} 11... Nc5 {[%clk 0:09:34]} 12. Bc2 {[%clk 0:09:57.1]} 12... dxc4
{[%clk 0:08:13.2]} 13. Nxc4 {[%clk 0:09:58]} 13... Qd5 {[%clk 0:08:11.8]} 14. f3
{[%clk 0:09:58]} 14... Rfd8 {[%clk 0:08:06.6]} 15. Rfd1 {[%clk 0:09:58]} 15...
Qg5 {[%clk 0:07:57.7]} 16. Rac1 {[%clk 0:09:27.2]} 16... Nd5 {[%clk 0:07:15.8]}
17. Kh1 {[%clk 0:08:55.3]} 17... Bf6 {[%clk 0:06:52.4]} 18. e4 {[%clk
0:08:43.2]} 18... Nf4 {[%clk 0:06:38.8]} 19. Qf1 {[%clk 0:08:37.5]} 19... Ncd3
{[%clk 0:05:30.2]} 20. Nxe6 {[%clk 0:06:55.5]} 20... fxe6 {[%clk 0:04:43.4]} 21.
Bxd3 {[%clk 0:05:58.2]} 21... Rxd3 {[%clk 0:04:11.2]} 22. Rxd3 {[%clk 0:05:30]}
22... Nxd3 {[%clk 0:04:08.6]} 23. Qxd3 {[%clk 0:05:16.3]} 23... Bxb2 {[%clk
0:04:05.9]} 24. Rd1 {[%clk 0:04:54.1]} 24... Ba6 {[%clk 0:03:29.7]} 25. Qd7
{[%clk 0:04:01.1]} 25... Bxc4 {[%clk 0:03:26.9]} 26. bxc4 {[%clk 0:03:44.1]}
26... Qe5 {[%clk 0:03:01.1]} 27. Rd6 {[%clk 0:03:30]} 27... Ba3 {[%clk
0:02:45.6]} 28. Rd1 {[%clk 0:03:13.1]} 28... Bc5 {[%clk 0:02:12.8]} 29. h3
{[%clk 0:03:03.2]} 29... a5 {[%clk 0:02:08.9]} 30. Qc6 {[%clk 0:02:58.6]} 30...
Rf8 {[%clk 0:02:08.3]} 31. Rd7 {[%clk 0:02:55.5]} 31... h5 {[%clk 0:02:06.4]}
32. Qb7 {[%clk 0:02:49.3]} 32... Qa1+ {[%clk 0:02:02.5]} 33. Kh2 {[%clk
0:02:49.6]} 33... Qg1+ {[%clk 0:01:59.4]} 34. Kg3 {[%clk 0:02:49.7]} 34... Bf2#
{[%clk 0:01:54.9]} 0-1

[Event "GrandPrix_29.05"]
[Site "Chess.com"]
[Date "2020.05.29"]
[Round "2"]
[White "Keks2017"]
[Black "Vesper2018"]
[Result "1-0"]
[WhiteElo "2461"]
[BlackElo "1786"]
[TimeControl "600+2"]
[EndTime "9:52:02 PDT"]
[Termination "Keks2017 won by resignation"]

1. e4 {[%clk 0:09:54.1]} 1... c5 {[%clk 0:10:00.2]} 2. d3 {[%clk 0:09:54.4]}
2... Nc6 {[%clk 0:09:58.2]} 3. g3 {[%clk 0:09:54.4]} 3... g6 {[%clk 0:09:54]} 4.
Bg2 {[%clk 0:09:54.6]} 4... Bg7 {[%clk 0:09:55.1]} 5. f4 {[%clk 0:09:54.8]} 5...
d6 {[%clk 0:09:38.7]} 6. Nf3 {[%clk 0:09:54.6]} 6... e6 {[%clk 0:09:26.8]} 7.
O-O {[%clk 0:09:53.5]} 7... Nge7 {[%clk 0:09:23.8]} 8. c3 {[%clk 0:09:54.1]}
8... O-O {[%clk 0:09:23.9]} 9. Be3 {[%clk 0:09:54.4]} 9... b6 {[%clk 0:09:15.9]}
10. Bf2 {[%clk 0:09:54.5]} 10... f5 {[%clk 0:08:36.1]} 11. Re1 {[%clk 0:09:54]}
11... h6 {[%clk 0:08:27.2]} 12. Na3 {[%clk 0:09:54.5]} 12... d5 {[%clk
0:07:57.1]} 13. exd5 {[%clk 0:09:37.4]} 13... exd5 {[%clk 0:07:53.5]} 14. d4
{[%clk 0:09:35]} 14... c4 {[%clk 0:07:39.1]} 15. Ne5 {[%clk 0:09:35]} 15... Nxe5
{[%clk 0:07:32.5]} 16. dxe5 {[%clk 0:09:35.2]} 16... Be6 {[%clk 0:07:06]} 17.
Nb5 {[%clk 0:09:30.9]} 17... Qd7 {[%clk 0:06:31.8]} 18. Nd4 {[%clk 0:09:28.2]}
18... Rfd8 {[%clk 0:06:22.2]} 19. Qd2 {[%clk 0:09:03.4]} 19... Rac8 {[%clk
0:05:52.6]} 20. Rad1 {[%clk 0:08:59]} 20... b5 {[%clk 0:05:28.8]} 21. Nxe6
{[%clk 0:08:32.4]} 21... Qxe6 {[%clk 0:05:28.3]} 22. Bxa7 {[%clk 0:08:31.4]}
22... Ra8 {[%clk 0:04:52.3]} 23. Bc5 {[%clk 0:08:31.2]} 23... Rxa2 {[%clk
0:04:47.1]} 24. Ba3 {[%clk 0:08:17.5]} 24... Kh7 {[%clk 0:04:30.4]} 25. Qc2
{[%clk 0:08:11.3]} 25... Ra8 {[%clk 0:04:18.9]} 26. Qb1 {[%clk 0:07:54.8]} 26...
R2xa3 {[%clk 0:04:02.2]} 27. bxa3 {[%clk 0:07:55.1]} 27... Qb6+ {[%clk
0:03:07.9]} 28. Kh1 {[%clk 0:07:48]} 28... Rxa3 {[%clk 0:02:33.5]} 29. Qb4
{[%clk 0:07:31.5]} 29... Qa7 {[%clk 0:02:33.7]} 30. Qxb5 {[%clk 0:07:21.4]}
30... Rxc3 {[%clk 0:00:58.3]} 31. Bxd5 {[%clk 0:07:02.2]} 31... Rc2 {[%clk
0:00:39]} 32. Bg2 {[%clk 0:06:46.8]} 32... Qf2 {[%clk 0:00:38.3]} 33. Rg1 {[%clk
0:06:42.1]} 33... c3 {[%clk 0:00:33.3]} 34. Qb7 {[%clk 0:06:00.7]} 34... Qc5
{[%clk 0:00:19.9]} 35. Rd7 {[%clk 0:05:38.9]} 35... Rb2 {[%clk 0:00:20.2]} 36.
Qc7 {[%clk 0:05:08]} 36... Qxc7 {[%clk 0:00:04.2]} 37. Rxc7 {[%clk 0:05:08.4]}
37... c2 {[%clk 0:00:03.2]} 38. Rxe7 {[%clk 0:04:59.4]} 38... Rb1 {[%clk
0:00:02.8]} 39. Rc7 {[%clk 0:04:59.6]} 1-0

[Event "GrandPrix_29.05"]
[Site "Chess.com"]
[Date "2020.05.29"]
[Round "2"]
[White "fm_magua"]
[Black "Sakkcapak"]
[Result "1/2-1/2"]
[WhiteElo "1775"]
[BlackElo "2113"]
[TimeControl "600+2"]
[EndTime "9:52:10 PDT"]
[Termination "Game drawn by repetition"]

1. e4 {[%clk 0:10:00.1]} 1... e6 {[%clk 0:10:00]} 2. d3 {[%clk 0:10:00.8]} 2...
d5 {[%clk 0:09:59.6]} 3. Nd2 {[%clk 0:10:01.6]} 3... Nf6 {[%clk 0:09:59.9]} 4.
g3 {[%clk 0:10:02.1]} 4... c5 {[%clk 0:09:59.6]} 5. Bg2 {[%clk 0:10:02.8]} 5...
Nc6 {[%clk 0:10:00.3]} 6. Ngf3 {[%clk 0:10:03.8]} 6... Be7 {[%clk 0:10:00.7]} 7.
O-O {[%clk 0:10:05]} 7... O-O {[%clk 0:10:01]} 8. e5 {[%clk 0:10:06.2]} 8... Nd7
{[%clk 0:10:01.2]} 9. Re1 {[%clk 0:10:07.8]} 9... Qc7 {[%clk 0:10:01.7]} 10. Qe2
{[%clk 0:10:08.9]} 10... b5 {[%clk 0:10:01.8]} 11. Nf1 {[%clk 0:10:10]} 11... a5
{[%clk 0:09:37.6]} 12. h4 {[%clk 0:10:09.3]} 12... Ba6 {[%clk 0:09:35.8]} 13.
Bf4 {[%clk 0:10:10.1]} 13... Rfc8 {[%clk 0:09:35.2]} 14. Ne3 {[%clk 0:10:11.1]}
14... Nf8 {[%clk 0:08:47.5]} 15. c3 {[%clk 0:09:54.4]} 15... b4 {[%clk 0:08:30]}
16. a3 {[%clk 0:09:54.4]} 16... bxc3 {[%clk 0:08:24.1]} 17. bxc3 {[%clk
0:09:55.2]} 17... a4 {[%clk 0:08:12.3]} 18. Ng4 {[%clk 0:09:52.1]} 18... Qa5
{[%clk 0:07:49.7]} 19. Qd2 {[%clk 0:09:35.3]} 19... Qb5 {[%clk 0:07:32.7]} 20.
Bf1 {[%clk 0:09:26]} 20... Na5 {[%clk 0:07:20.4]} 21. Bg5 {[%clk 0:09:10.7]}
21... Nb3 {[%clk 0:07:13.3]} 22. Qf4 {[%clk 0:09:10.1]} 22... Ng6 {[%clk
0:07:05.1]} 23. Qe3 {[%clk 0:09:07]} 23... Nxa1 {[%clk 0:06:41.6]} 24. Rxa1
{[%clk 0:09:06.3]} 24... d4 {[%clk 0:06:12.6]} 25. cxd4 {[%clk 0:09:01.2]} 25...
cxd4 {[%clk 0:06:12.7]} 26. Nxd4 {[%clk 0:09:02.4]} 26... Qb2 {[%clk 0:06:02.8]}
27. Bxe7 {[%clk 0:08:34.7]} 27... Nxe7 {[%clk 0:05:26.4]} 28. Re1 {[%clk
0:08:20.8]} 28... Nd5 {[%clk 0:04:55.3]} 29. Qe4 {[%clk 0:08:06.3]} 29... Bb7
{[%clk 0:03:44]} 30. Nf3 {[%clk 0:07:57.4]} 30... Ne7 {[%clk 0:03:18.1]} 31. Qf4
{[%clk 0:07:49.9]} 31... Ng6 {[%clk 0:03:16.3]} 32. Qe3 {[%clk 0:07:50.3]} 32...
Bxf3 {[%clk 0:03:04]} 33. Qxf3 {[%clk 0:07:51]} 33... Rab8 {[%clk 0:03:01.2]}
34. h5 {[%clk 0:07:48.3]} 34... Nf8 {[%clk 0:02:59.9]} 35. h6 {[%clk 0:07:32.5]}
35... Qb7 {[%clk 0:02:42]} 36. Qe3 {[%clk 0:07:18.4]} 36... Ng6 {[%clk
0:01:57.9]} 37. hxg7 {[%clk 0:06:46]} 37... h5 {[%clk 0:01:52.7]} 38. Nf6+
{[%clk 0:06:27.7]} 38... Kxg7 {[%clk 0:01:53.5]} 39. Nxh5+ {[%clk 0:06:28.4]}
39... Kf8 {[%clk 0:01:46.9]} 40. Qh6+ {[%clk 0:06:09.9]} 40... Ke7 {[%clk
0:01:31.4]} 41. Qg5+ {[%clk 0:06:09.3]} 41... Kf8 {[%clk 0:01:25.1]} 42. Bg2
{[%clk 0:05:45.6]} 42... Qc7 {[%clk 0:01:17.1]} 43. d4 {[%clk 0:04:59.2]} 43...
Qc3 {[%clk 0:01:07.3]} 44. Re3 {[%clk 0:04:59.8]} 44... Qxd4 {[%clk 0:01:04.3]}
45. Qh6+ {[%clk 0:04:41]} 45... Ke7 {[%clk 0:01:04.8]} 46. Qg5+ {[%clk
0:04:41.7]} 46... Kf8 {[%clk 0:01:04.7]} 47. Qh6+ {[%clk 0:04:41.4]} 47... Ke7
{[%clk 0:01:04]} 48. Qg5+ {[%clk 0:04:42.7]} 48... Kf8 {[%clk 0:00:46.5]}
1/2-1/2

[Event "GrandPrix_29.05"]
[Site "Chess.com"]
[Date "2020.05.29"]
[Round "2"]
[White "TheFireChess"]
[Black "Fandorine"]
[Result "0-1"]
[WhiteElo "2241"]
[BlackElo "2606"]
[TimeControl "600+2"]
[EndTime "9:52:15 PDT"]
[Termination "Fandorine won by resignation"]

1. e4 {[%clk 0:10:01.9]} 1... c5 {[%clk 0:09:56.7]} 2. c3 {[%clk 0:10:02.6]}
2... Nf6 {[%clk 0:09:41.9]} 3. e5 {[%clk 0:10:03.2]} 3... Nd5 {[%clk 0:09:43.5]}
4. Nf3 {[%clk 0:10:05.1]} 4... e6 {[%clk 0:09:45]} 5. Bc4 {[%clk 0:10:06.3]}
5... Nb6 {[%clk 0:09:23.4]} 6. Bb3 {[%clk 0:10:06.5]} 6... d6 {[%clk 0:09:24.9]}
7. O-O {[%clk 0:10:00.2]} 7... Nc6 {[%clk 0:09:25.5]} 8. exd6 {[%clk 0:09:58.4]}
8... Bxd6 {[%clk 0:09:27.4]} 9. d4 {[%clk 0:09:59.8]} 9... O-O {[%clk
0:08:55.3]} 10. Bg5 {[%clk 0:09:36.6]} 10... f6 {[%clk 0:08:17.2]} 11. Be3
{[%clk 0:09:01.1]} 11... cxd4 {[%clk 0:08:16.1]} 12. Nxd4 {[%clk 0:09:03]} 12...
Nxd4 {[%clk 0:08:12.2]} 13. Qxd4 {[%clk 0:09:04.9]} 13... Qc7 {[%clk 0:08:07.5]}
14. f4 {[%clk 0:08:39.1]} 14... Kh8 {[%clk 0:07:59.4]} 15. Rd1 {[%clk
0:08:26.1]} 15... Be7 {[%clk 0:07:58.6]} 16. Nd2 {[%clk 0:08:19.1]} 16... Rd8
{[%clk 0:07:22.6]} 17. Qe4 {[%clk 0:08:14]} 17... Nd5 {[%clk 0:07:16.2]} 18.
Bxd5 {[%clk 0:08:11.2]} 18... Rxd5 {[%clk 0:07:13.8]} 19. Nb3 {[%clk 0:07:58.1]}
19... Rxd1+ {[%clk 0:06:27.8]} 20. Rxd1 {[%clk 0:08:00]} 20... Bd7 {[%clk
0:06:28]} 21. Nd4 {[%clk 0:07:41.3]} 21... Bc5 {[%clk 0:05:52.7]} 22. Nxe6
{[%clk 0:07:26.2]} 22... Bxe6 {[%clk 0:05:54.6]} 23. Qxe6 {[%clk 0:07:26.4]}
23... Qc6 {[%clk 0:05:56.3]} 24. Qh3 {[%clk 0:06:58.3]} 24... Re8 {[%clk
0:05:51.4]} 25. Bxc5 {[%clk 0:06:46.1]} 25... Qxc5+ {[%clk 0:05:53.3]} 26. Kh1
{[%clk 0:06:47.2]} 26... Qf2 {[%clk 0:05:54]} 27. Rg1 {[%clk 0:06:34.2]} 27...
Qxf4 {[%clk 0:05:15.2]} 28. Qd7 {[%clk 0:06:26.1]} 28... Qe4 {[%clk 0:05:16.5]}
29. h3 {[%clk 0:06:18.7]} 29... h5 {[%clk 0:05:17.1]} 30. Rd1 {[%clk 0:06:06.6]}
30... Kh7 {[%clk 0:05:14.6]} 31. Qd5 {[%clk 0:05:48.3]} 31... Qe2 {[%clk
0:04:35]} 32. Rd2 {[%clk 0:05:42.2]} 32... Qf1+ {[%clk 0:04:33.2]} 33. Kh2
{[%clk 0:05:41.2]} 33... Re5 {[%clk 0:04:29.6]} 34. Qf3 {[%clk 0:05:23]} 34...
Qxf3 {[%clk 0:03:32.9]} 35. gxf3 {[%clk 0:05:24.9]} 35... h4 {[%clk 0:03:34.5]}
36. Kg2 {[%clk 0:05:23.9]} 36... Rg5+ {[%clk 0:03:34.8]} 37. Kf2 {[%clk
0:04:45.3]} 37... Rg3 {[%clk 0:03:31.7]} 38. Rd7 {[%clk 0:04:38.5]} 38... Rxh3
{[%clk 0:03:28]} 39. Kg2 {[%clk 0:04:37]} 39... Rg3+ {[%clk 0:03:28.9]} 40. Kf2
{[%clk 0:04:37.6]} 40... Rg6 {[%clk 0:02:40.5]} 41. Rd4 {[%clk 0:04:35.3]} 41...
h3 {[%clk 0:02:35.6]} 42. Rh4+ {[%clk 0:04:35.4]} 42... Rh6 {[%clk 0:02:36.8]}
43. Rxh6+ {[%clk 0:04:35.3]} 43... Kxh6 {[%clk 0:02:38.7]} 44. Kg3 {[%clk
0:04:36.8]} 44... Kg5 {[%clk 0:02:40.3]} 45. Kxh3 {[%clk 0:04:37.5]} 45... Kf4
{[%clk 0:02:41.4]} 46. Kg2 {[%clk 0:04:39]} 46... Ke3 {[%clk 0:02:16.5]} 47. Kg3
{[%clk 0:04:37.8]} 47... Kd3 {[%clk 0:02:01.4]} 48. Kf4 {[%clk 0:04:34.4]} 48...
g6 {[%clk 0:01:58.8]} 49. c4 {[%clk 0:04:33.9]} 49... Kxc4 {[%clk 0:01:58.9]}
50. Ke4 {[%clk 0:04:34.9]} 50... Kc5 {[%clk 0:01:57.5]} 51. f4 {[%clk
0:04:35.4]} 51... Kc4 {[%clk 0:01:57]} 52. Ke3 {[%clk 0:04:35.8]} 52... Kd5
{[%clk 0:01:56.4]} 53. Kd3 {[%clk 0:04:36.6]} 53... a5 {[%clk 0:01:53.9]} 54. b3
{[%clk 0:04:36.5]} 54... b5 {[%clk 0:01:53.7]} 55. a3 {[%clk 0:04:37.5]} 55...
a4 {[%clk 0:01:47.7]} 56. bxa4 {[%clk 0:04:37.3]} 56... bxa4 {[%clk 0:01:49.6]}
0-1

[Event "GrandPrix_29.05"]
[Site "Chess.com"]
[Date "2020.05.29"]
[Round "2"]
[White "redblizzard"]
[Black "SergeyVashchilov"]
[Result "1-0"]
[WhiteElo "1864"]
[BlackElo "2105"]
[TimeControl "600+2"]
[EndTime "9:52:15 PDT"]
[Termination "redblizzard won by resignation"]

1. e4 {[%clk 0:10:01.9]} 1... e6 {[%clk 0:10:00.6]} 2. d4 {[%clk 0:09:57.8]}
2... d5 {[%clk 0:10:01.6]} 3. Nc3 {[%clk 0:09:59]} 3... Bb4 {[%clk 0:10:01.9]}
4. e5 {[%clk 0:09:58.8]} 4... Qd7 {[%clk 0:10:02.8]} 5. Qg4 {[%clk 0:09:58.1]}
5... f5 {[%clk 0:10:03.2]} 6. Qh5+ {[%clk 0:09:44.4]} 6... Qf7 {[%clk
0:10:03.1]} 7. Qxf7+ {[%clk 0:09:44.2]} 7... Kxf7 {[%clk 0:10:03.8]} 8. Nf3
{[%clk 0:09:42]} 8... h6 {[%clk 0:09:51.9]} 9. h4 {[%clk 0:09:35.3]} 9... g6
{[%clk 0:09:51.3]} 10. Bd2 {[%clk 0:09:28.7]} 10... Bxc3 {[%clk 0:09:47.2]} 11.
bxc3 {[%clk 0:09:21.6]} 11... b6 {[%clk 0:09:47.5]} 12. c4 {[%clk 0:09:22.3]}
12... c6 {[%clk 0:09:47.1]} 13. cxd5 {[%clk 0:09:10.1]} 13... cxd5 {[%clk
0:09:45.6]} 14. c4 {[%clk 0:09:10.1]} 14... Ne7 {[%clk 0:09:45.3]} 15. Rc1
{[%clk 0:09:00.6]} 15... Ba6 {[%clk 0:09:27.3]} 16. Be2 {[%clk 0:08:21.4]} 16...
Bxc4 {[%clk 0:08:36]} 17. Bxc4 {[%clk 0:08:19.7]} 17... dxc4 {[%clk 0:08:37.9]}
18. Rxc4 {[%clk 0:08:20.7]} 18... Nbc6 {[%clk 0:08:09.6]} 19. Ke2 {[%clk
0:08:13]} 19... Ke8 {[%clk 0:07:07.9]} 20. Rhc1 {[%clk 0:07:00.4]} 20... Kd7
{[%clk 0:07:08.4]} 21. d5 {[%clk 0:06:22.1]} 21... exd5 {[%clk 0:06:56.8]} 22.
e6+ {[%clk 0:06:22.7]} 22... Kc7 {[%clk 0:06:10.8]} 23. Rxc6+ {[%clk 0:06:12.6]}
23... Nxc6 {[%clk 0:06:11.8]} 24. Nd4 {[%clk 0:05:07.4]} 24... Kb7 {[%clk
0:04:45.2]} 25. Rxc6 {[%clk 0:04:52.2]} 25... Rac8 {[%clk 0:04:38.1]} 26. Rd6
{[%clk 0:04:47.4]} 26... Rcd8 {[%clk 0:03:45.5]} 27. Rxd8 {[%clk 0:04:39.9]}
27... Rxd8 {[%clk 0:03:47.4]} 28. Bxh6 {[%clk 0:04:39.2]} 28... Re8 {[%clk
0:03:45.3]} 29. Kf3 {[%clk 0:04:30.4]} 29... b5 {[%clk 0:03:45.6]} 30. Kf4
{[%clk 0:04:26.2]} 30... Kb6 {[%clk 0:03:44.8]} 31. Ke5 {[%clk 0:04:26.3]} 31...
Kc5 {[%clk 0:03:43.8]} 32. Be3 {[%clk 0:04:18.9]} 32... Kc4 {[%clk 0:03:44.8]}
33. g3 {[%clk 0:03:57.8]} 33... a5 {[%clk 0:03:36.5]} 34. Kf6 {[%clk 0:03:54.3]}
34... b4 {[%clk 0:03:00.2]} 35. Kf7 {[%clk 0:03:52.9]} 35... Ra8 {[%clk
0:02:58.5]} 36. e7 {[%clk 0:03:42.3]} 36... a4 {[%clk 0:02:55.3]} 37. e8=Q
{[%clk 0:03:37.3]} 37... Rxe8 {[%clk 0:02:56.2]} 38. Kxe8 {[%clk 0:03:38.9]}
38... Kc3 {[%clk 0:02:58.1]} 39. Nc6 {[%clk 0:03:28.4]} 39... b3 {[%clk
0:02:36.7]} 40. axb3 {[%clk 0:03:21.6]} 40... axb3 {[%clk 0:02:25.7]} 41. Bd4+
{[%clk 0:03:21.1]} 41... Kc4 {[%clk 0:02:21.5]} 42. Kd7 {[%clk 0:03:17.3]} 42...
Kd3 {[%clk 0:02:15.1]} 43. Ke6 {[%clk 0:03:11]} 43... Ke2 {[%clk 0:02:15.8]} 44.
Kf6 {[%clk 0:03:07.9]} 44... b2 {[%clk 0:02:14]} 45. Bxb2 {[%clk 0:03:07.7]}
45... Kxf2 {[%clk 0:02:15.9]} 46. Be5 {[%clk 0:03:04.8]} 1-0